[Event "*** Titled Tuesday Blitz"]
[Site "Chess.com"]
[Date "2020.10.20"]
[Round "3"]
[White "Aleksey_Sorokin"]
[Black "sotochess"]
[Result "1-0"]
[WhiteElo "2844"]
[BlackElo "2633"]
[TimeControl "180+1"]
[EndTime "10:27:29 PDT"]
[Termination "Aleksey_Sorokin won by resignation"]

1. d4 {[%clk 0:03:00.9]} 1... Nf6 {[%clk 0:02:59.4]} 2. c4 {[%clk 0:03:01.1]}
2... g6 {[%clk 0:02:58.8]} 3. Nc3 {[%clk 0:03:01]} 3... d5 {[%clk 0:02:58]} 4.
cxd5 {[%clk 0:03:01.9]} 4... Nxd5 {[%clk 0:02:58.1]} 5. e4 {[%clk 0:03:02.8]}
5... Nxc3 {[%clk 0:02:57.3]} 6. bxc3 {[%clk 0:03:03.7]} 6... Bg7 {[%clk
0:02:57.8]} 7. Nf3 {[%clk 0:03:04.6]} 7... O-O {[%clk 0:02:57.3]} 8. Be2 {[%clk
0:03:04]} 8... c5 {[%clk 0:02:57.3]} 9. O-O {[%clk 0:03:04]} 9... Nc6 {[%clk
0:02:56.4]} 10. Be3 {[%clk 0:03:03.6]} 10... Qa5 {[%clk 0:02:47.1]} 11. Rc1
{[%clk 0:02:57.8]} 11... Qxa2 {[%clk 0:02:35.5]} 12. d5 {[%clk 0:02:53.2]} 12...
Rd8 {[%clk 0:02:18.8]} 13. Bxc5 {[%clk 0:02:48]} 13... e6 {[%clk 0:02:18.6]} 14.
c4 {[%clk 0:02:27.1]} 14... b6 {[%clk 0:02:11.9]} 15. Be3 {[%clk 0:02:04.9]}
15... Na5 {[%clk 0:02:09.6]} 16. Rc2 {[%clk 0:01:52.5]} 16... Qa4 {[%clk
0:02:05.1]} 17. Bd4 {[%clk 0:01:51.8]} 17... exd5 {[%clk 0:01:47.7]} 18. cxd5
{[%clk 0:01:46.3]} 18... Bg4 {[%clk 0:01:29.6]} 19. Bxg7 {[%clk 0:01:43.9]}
19... Kxg7 {[%clk 0:01:29.5]} 20. Qd4+ {[%clk 0:01:36.2]} 20... Qxd4 {[%clk
0:01:29]} 21. Nxd4 {[%clk 0:01:37.1]} 21... Bd7 {[%clk 0:01:19]} 22. Ba6 {[%clk
0:01:35.1]} 22... f5 {[%clk 0:00:47.5]} 23. e5 {[%clk 0:01:33.9]} 23... Kh6
{[%clk 0:00:44.2]} 24. d6 {[%clk 0:01:24.8]} 24... f4 {[%clk 0:00:37.5]} 25. Re1
{[%clk 0:01:21.8]} 25... Ba4 {[%clk 0:00:35]} 26. Rc3 {[%clk 0:01:17]} 26... g5
{[%clk 0:00:27.7]} 27. Rh3+ {[%clk 0:01:08.3]} 27... Kg7 {[%clk 0:00:23.9]} 28.
Ne6+ {[%clk 0:01:07.7]} 1-0

[Event "*** Titled Tuesday Blitz"]
[Site "Chess.com"]
[Date "2020.10.20"]
[Round "3"]
[White "Shubinkirill2003"]
[Black "Guenplen"]
[Result "1-0"]
[WhiteElo "2658"]
[BlackElo "2842"]
[TimeControl "180+1"]
[EndTime "10:27:31 PDT"]
[Termination "Shubinkirill2003 won by resignation"]

1. e4 {[%clk 0:03:00.9]} 1... c5 {[%clk 0:03:00.2]} 2. Nf3 {[%clk 0:03:00.6]}
2... d6 {[%clk 0:03:00.2]} 3. Bb5+ {[%clk 0:02:58.9]} 3... Bd7 {[%clk
0:02:58.1]} 4. c4 {[%clk 0:02:58.7]} 4... Nf6 {[%clk 0:02:56.8]} 5. Nc3 {[%clk
0:02:58.2]} 5... a6 {[%clk 0:02:54.6]} 6. Bxd7+ {[%clk 0:02:57.5]} 6... Nbxd7
{[%clk 0:02:55.5]} 7. d4 {[%clk 0:02:57.4]} 7... cxd4 {[%clk 0:02:55.3]} 8. Qxd4
{[%clk 0:02:58.3]} 8... g6 {[%clk 0:02:52.7]} 9. O-O {[%clk 0:02:57.5]} 9... Bg7
{[%clk 0:02:53.1]} 10. h3 {[%clk 0:02:54.1]} 10... O-O {[%clk 0:02:52.8]} 11.
Qd3 {[%clk 0:02:54]} 11... Rc8 {[%clk 0:02:50.4]} 12. Be3 {[%clk 0:02:51]} 12...
Nc5 {[%clk 0:02:39.9]} 13. Bxc5 {[%clk 0:02:50.5]} 13... Rxc5 {[%clk 0:02:38.5]}
14. Rac1 {[%clk 0:02:49.1]} 14... Qc7 {[%clk 0:02:29]} 15. b4 {[%clk 0:02:42.9]}
15... Rxc4 {[%clk 0:02:19.2]} 16. Nd5 {[%clk 0:02:41.1]} 16... Rxc1 {[%clk
0:02:20.1]} 17. Nxc7 {[%clk 0:02:40.6]} 17... Rxc7 {[%clk 0:02:21]} 18. b5
{[%clk 0:02:26.5]} 18... axb5 {[%clk 0:02:18.1]} 19. Rb1 {[%clk 0:02:26.4]}
19... Nd7 {[%clk 0:02:16.7]} 20. Qxb5 {[%clk 0:02:21.8]} 20... Rfc8 {[%clk
0:02:12.7]} 21. g3 {[%clk 0:02:16.3]} 21... Ne5 {[%clk 0:02:08.2]} 22. Nxe5
{[%clk 0:02:08.7]} 22... Bxe5 {[%clk 0:02:09.1]} 23. Re1 {[%clk 0:02:05]} 23...
Bd4 {[%clk 0:01:54.5]} 24. Re2 {[%clk 0:02:03]} 24... Kg7 {[%clk 0:01:52.3]} 25.
Kg2 {[%clk 0:02:02.5]} 25... e5 {[%clk 0:01:51.5]} 26. Qb3 {[%clk 0:01:49.7]}
26... b6 {[%clk 0:01:48.5]} 27. h4 {[%clk 0:01:47.7]} 27... h5 {[%clk
0:01:45.6]} 28. a4 {[%clk 0:01:27.2]} 28... Rc3 {[%clk 0:01:44.5]} 29. Qb5
{[%clk 0:01:25.6]} 29... Rc2 {[%clk 0:01:36.6]} 30. Qd3 {[%clk 0:01:24.6]} 30...
Rxe2 {[%clk 0:01:35]} 31. Qxe2 {[%clk 0:01:25.5]} 31... Rc3 {[%clk 0:01:34.3]}
32. f4 {[%clk 0:01:14.9]} 32... Rb3 {[%clk 0:01:32.7]} 33. Qc4 {[%clk 0:01:10]}
33... Rb2+ {[%clk 0:01:28.3]} 34. Kh3 {[%clk 0:01:04.3]} 34... Bg1 {[%clk
0:01:24.8]} 35. g4 {[%clk 0:01:04]} 35... exf4 {[%clk 0:01:22.3]} 36. Qc3+
{[%clk 0:01:03.3]} 36... f6 {[%clk 0:01:08.3]} 37. Qxb2 {[%clk 0:01:02.2]} 37...
Kf7 {[%clk 0:00:54.5]} 38. gxh5 {[%clk 0:01:00.7]} 38... gxh5 {[%clk 0:00:54.5]}
39. Qe2 {[%clk 0:00:58.9]} 1-0

[Event "*** Titled Tuesday Blitz"]
[Site "Chess.com"]
[Date "2020.10.20"]
[Round "3"]
[White "djano"]
[Black "Shivagami"]
[Result "0-1"]
[WhiteElo "2452"]
[BlackElo "2257"]
[TimeControl "180+1"]
[EndTime "10:27:31 PDT"]
[Termination "Shivagami won by resignation"]

1. Nf3 {[%clk 0:03:00.9]} 1... d5 {[%clk 0:02:56.2]} 2. d4 {[%clk 0:03:00.5]}
2... Nf6 {[%clk 0:02:55.8]} 3. Bf4 {[%clk 0:03:00.5]} 3... c5 {[%clk 0:02:55.2]}
4. e3 {[%clk 0:03:00.3]} 4... Nc6 {[%clk 0:02:55.3]} 5. Nbd2 {[%clk 0:03:00.3]}
5... cxd4 {[%clk 0:02:50.2]} 6. exd4 {[%clk 0:03:01.2]} 6... Bf5 {[%clk
0:02:50.3]} 7. c3 {[%clk 0:02:57.1]} 7... e6 {[%clk 0:02:48.9]} 8. Qb3 {[%clk
0:02:50.1]} 8... Qc8 {[%clk 0:02:41.9]} 9. Be2 {[%clk 0:02:48.5]} 9... h6 {[%clk
0:02:34.9]} 10. O-O {[%clk 0:02:44.1]} 10... Be7 {[%clk 0:02:34.6]} 11. h3
{[%clk 0:02:35.6]} 11... O-O {[%clk 0:02:33.3]} 12. a4 {[%clk 0:02:35.6]} 12...
Ne4 {[%clk 0:02:30.2]} 13. Rfe1 {[%clk 0:02:29.2]} 13... Nxd2 {[%clk 0:02:16.5]}
14. Nxd2 {[%clk 0:02:30.1]} 14... Qd7 {[%clk 0:02:15.9]} 15. Nf3 {[%clk
0:02:20.1]} 15... Bd6 {[%clk 0:02:12.7]} 16. Ne5 {[%clk 0:02:17.4]} 16... Nxe5
{[%clk 0:02:03.6]} 17. dxe5 {[%clk 0:02:09.3]} 17... Bc5 {[%clk 0:02:03.8]} 18.
a5 {[%clk 0:01:57]} 18... a6 {[%clk 0:01:57.6]} 19. Bg3 {[%clk 0:01:47.3]} 19...
Qe7 {[%clk 0:01:45.4]} 20. Qd1 {[%clk 0:01:29.3]} 20... Rfd8 {[%clk 0:01:35.6]}
21. Bd3 {[%clk 0:01:29.2]} 21... Qg5 {[%clk 0:01:27.9]} 22. Bxf5 {[%clk
0:01:21.8]} 22... Qxg3 {[%clk 0:01:24.6]} 23. Re2 {[%clk 0:00:23.9]} 23... exf5
{[%clk 0:01:22.6]} 24. Qb3 {[%clk 0:00:24.2]} 24... Rab8 {[%clk 0:01:02.1]} 25.
c4 {[%clk 0:00:24.5]} 25... Qxb3 {[%clk 0:00:59.9]} 0-1

[Event "*** Titled Tuesday Blitz"]
[Site "Chess.com"]
[Date "2020.10.20"]
[Round "3"]
[White "TrickyFortem"]
[Black "GMJustin"]
[Result "0-1"]
[WhiteElo "2465"]
[BlackElo "2272"]
[TimeControl "180+1"]
[EndTime "10:27:32 PDT"]
[Termination "GMJustin won by resignation"]

1. e4 {[%clk 0:03:00.9]} 1... c5 {[%clk 0:02:42.5]} 2. Nf3 {[%clk 0:03:00.3]}
2... d6 {[%clk 0:02:32.9]} 3. d4 {[%clk 0:02:59.8]} 3... cxd4 {[%clk 0:02:32.3]}
4. Nxd4 {[%clk 0:03:00.7]} 4... Nf6 {[%clk 0:02:31.8]} 5. Nc3 {[%clk 0:03:01.3]}
5... a6 {[%clk 0:02:29.7]} 6. Bc4 {[%clk 0:03:01.9]} 6... e6 {[%clk 0:02:27.5]}
7. Bb3 {[%clk 0:03:01.8]} 7... b5 {[%clk 0:02:26.9]} 8. O-O {[%clk 0:03:01.4]}
8... Be7 {[%clk 0:02:26.1]} 9. Re1 {[%clk 0:03:01.1]} 9... O-O {[%clk
0:02:16.1]} 10. a3 {[%clk 0:03:01.4]} 10... Bb7 {[%clk 0:02:01.4]} 11. Bxe6
{[%clk 0:02:58.8]} 11... fxe6 {[%clk 0:01:58.2]} 12. Nxe6 {[%clk 0:02:59.7]}
12... Qd7 {[%clk 0:01:45.3]} 13. Nxf8 {[%clk 0:03:00.6]} 13... Bxf8 {[%clk
0:01:43.3]} 14. Bf4 {[%clk 0:03:01]} 14... Qe6 {[%clk 0:01:21.6]} 15. e5 {[%clk
0:02:56.8]} 15... dxe5 {[%clk 0:01:17.1]} 16. Rxe5 {[%clk 0:02:56.7]} 16... Qc6
{[%clk 0:01:14.3]} 17. Rg5 {[%clk 0:02:50.7]} 17... Nbd7 {[%clk 0:01:09.3]} 18.
Qd3 {[%clk 0:02:41.6]} 18... Nc5 {[%clk 0:00:52.7]} 19. Qh3 {[%clk 0:02:23.9]}
19... Ne6 {[%clk 0:00:45.9]} 20. Rf5 {[%clk 0:02:21.5]} 20... Nxf4 {[%clk
0:00:31.6]} 21. Rxf4 {[%clk 0:02:22.4]} 21... Re8 {[%clk 0:00:31.2]} 22. Rd1
{[%clk 0:02:16.6]} 22... Bd6 {[%clk 0:00:25.4]} 23. Rf5 {[%clk 0:02:10.2]} 23...
Bc8 {[%clk 0:00:22.2]} 24. Qd3 {[%clk 0:02:03.4]} 24... Bxf5 {[%clk 0:00:19.6]}
25. Qxf5 {[%clk 0:02:04.3]} 25... Be5 {[%clk 0:00:17.7]} 26. Ne2 {[%clk
0:01:52]} 26... Qe4 {[%clk 0:00:16.9]} 27. Qxe4 {[%clk 0:01:47.2]} 27... Nxe4
{[%clk 0:00:16.5]} 28. c3 {[%clk 0:01:48.1]} 28... Bf6 {[%clk 0:00:16.4]} 29.
Nf4 {[%clk 0:01:45.6]} 29... Rd8 {[%clk 0:00:14.8]} 30. Nd5 {[%clk 0:01:45.6]}
30... Kf7 {[%clk 0:00:11.5]} 31. f3 {[%clk 0:01:45.7]} 31... Nc5 {[%clk
0:00:09.5]} 32. Kf2 {[%clk 0:01:44.3]} 32... Ne6 {[%clk 0:00:08.2]} 33. Ke2
{[%clk 0:01:43.2]} 33... Rxd5 {[%clk 0:00:07]} 34. Rxd5 {[%clk 0:01:43]} 34...
Nf4+ {[%clk 0:00:07.2]} 35. Ke3 {[%clk 0:01:43.9]} 35... Nxd5+ {[%clk
0:00:07.4]} 36. Ke4 {[%clk 0:01:44.8]} 36... Ke6 {[%clk 0:00:07.8]} 37. f4
{[%clk 0:01:45.1]} 37... g6 {[%clk 0:00:08.2]} 38. g4 {[%clk 0:01:45.2]} 38...
Nb6 {[%clk 0:00:07.5]} 39. b3 {[%clk 0:01:44.9]} 39... Bxc3 {[%clk 0:00:06.2]}
40. f5+ {[%clk 0:01:45.8]} 40... gxf5+ {[%clk 0:00:05.9]} 41. gxf5+ {[%clk
0:01:46.7]} 41... Kf6 {[%clk 0:00:06.3]} 42. a4 {[%clk 0:01:47.6]} 42... b4
{[%clk 0:00:06.4]} 0-1

[Event "*** Titled Tuesday Blitz"]
[Site "Chess.com"]
[Date "2020.10.20"]
[Round "3"]
[White "IwkooO"]
[Black "AryanTari"]
[Result "0-1"]
[WhiteElo "2644"]
[BlackElo "2864"]
[TimeControl "180+1"]
[EndTime "10:27:36 PDT"]
[Termination "AryanTari won by resignation"]

1. e4 {[%clk 0:03:00.9]} 1... c6 {[%clk 0:02:58.5]} 2. d4 {[%clk 0:03:00.8]}
2... d5 {[%clk 0:02:59.1]} 3. e5 {[%clk 0:03:01.5]} 3... Bf5 {[%clk 0:02:59]} 4.
Nd2 {[%clk 0:03:02]} 4... e6 {[%clk 0:02:58.7]} 5. Nb3 {[%clk 0:03:02.7]} 5...
Nd7 {[%clk 0:02:59.3]} 6. Nf3 {[%clk 0:03:02.9]} 6... a5 {[%clk 0:02:57.4]} 7.
a4 {[%clk 0:03:02.8]} 7... Ne7 {[%clk 0:02:56]} 8. Be2 {[%clk 0:03:01.4]} 8...
h6 {[%clk 0:02:56.1]} 9. Bd2 {[%clk 0:02:54.3]} 9... g5 {[%clk 0:02:55.3]} 10.
O-O {[%clk 0:02:36.5]} 10... Bg7 {[%clk 0:02:54.7]} 11. Rc1 {[%clk 0:02:32.7]}
11... O-O {[%clk 0:02:52.9]} 12. Qe1 {[%clk 0:02:32.5]} 12... b6 {[%clk
0:02:47.8]} 13. c4 {[%clk 0:02:31.7]} 13... dxc4 {[%clk 0:02:44.7]} 14. Bxc4
{[%clk 0:02:32]} 14... Nd5 {[%clk 0:02:34.1]} 15. Qe2 {[%clk 0:02:31.9]} 15...
f6 {[%clk 0:02:17]} 16. exf6 {[%clk 0:02:26.8]} 16... Qxf6 {[%clk 0:02:15.4]}
17. Bd3 {[%clk 0:02:22.1]} 17... Rac8 {[%clk 0:01:44.2]} 18. Rc2 {[%clk
0:01:19.6]} 18... g4 {[%clk 0:01:38.4]} 19. Ne1 {[%clk 0:01:19.5]} 19... e5
{[%clk 0:01:33.3]} 20. dxe5 {[%clk 0:00:57.1]} 20... Nxe5 {[%clk 0:01:34.2]} 21.
Bxf5 {[%clk 0:00:54.2]} 21... Qxf5 {[%clk 0:01:35.1]} 22. Nd4 {[%clk 0:00:51.3]}
22... Qg6 {[%clk 0:01:35.7]} 23. Rc1 {[%clk 0:00:43]} 23... Rce8 {[%clk
0:01:29]} 24. Qd1 {[%clk 0:00:39.2]} 24... c5 {[%clk 0:01:28.3]} 25. Nb5 {[%clk
0:00:36.4]} 25... Nf3+ {[%clk 0:01:26.9]} 26. Nxf3 {[%clk 0:00:34.3]} 26... gxf3
{[%clk 0:01:27]} 27. g3 {[%clk 0:00:35]} 27... Qg4 {[%clk 0:01:23.3]} 28. Kh1
{[%clk 0:00:34.1]} 28... Rf5 {[%clk 0:01:22.4]} 29. Rg1 {[%clk 0:00:23.3]} 29...
Rh5 {[%clk 0:01:19.9]} 30. Qf1 {[%clk 0:00:21.8]} 30... Ree5 {[%clk 0:01:16.5]}
31. Rc4 {[%clk 0:00:12.4]} 31... Rxh2+ {[%clk 0:01:16.1]} 32. Kxh2 {[%clk
0:00:12.6]} 32... Rh5+ {[%clk 0:01:17]} 0-1

[Event "*** Titled Tuesday Blitz"]
[Site "Chess.com"]
[Date "2020.10.20"]
[Round "3"]
[White "shriyanasmallya"]
[Black "Kazmin_Dmitrij"]
[Result "1-0"]
[WhiteElo "1660"]
[BlackElo "2259"]
[TimeControl "180+1"]
[EndTime "10:27:36 PDT"]
[Termination "shriyanasmallya won by resignation"]

1. e4 {[%clk 0:03:00.9]} 1... c5 {[%clk 0:02:59]} 2. Nc3 {[%clk 0:02:59.4]} 2...
Nc6 {[%clk 0:02:54.6]} 3. f4 {[%clk 0:02:57.6]} 3... g6 {[%clk 0:02:46.5]} 4.
Nf3 {[%clk 0:02:55.5]} 4... Bg7 {[%clk 0:02:45.6]} 5. Bb5 {[%clk 0:02:53.9]}
5... Nf6 {[%clk 0:02:35.4]} 6. d3 {[%clk 0:02:52.1]} 6... d6 {[%clk 0:02:29.2]}
7. Bxc6+ {[%clk 0:02:48.2]} 7... bxc6 {[%clk 0:02:28.8]} 8. O-O {[%clk
0:02:47.5]} 8... O-O {[%clk 0:02:28.2]} 9. Qe1 {[%clk 0:02:47.5]} 9... Rb8
{[%clk 0:02:25.9]} 10. Qg3 {[%clk 0:02:44]} 10... Ne8 {[%clk 0:02:16.9]} 11. f5
{[%clk 0:02:41.7]} 11... Bd7 {[%clk 0:02:00.1]} 12. fxg6 {[%clk 0:02:29.9]}
12... fxg6 {[%clk 0:01:56.9]} 13. Qh4 {[%clk 0:02:23.6]} 13... e5 {[%clk
0:01:39.5]} 14. Bg5 {[%clk 0:02:21.7]} 14... Bf6 {[%clk 0:01:24.5]} 15. b3
{[%clk 0:02:14.9]} 15... Ng7 {[%clk 0:01:13.2]} 16. h3 {[%clk 0:01:58]} 16...
Ne6 {[%clk 0:01:07.2]} 17. Bxf6 {[%clk 0:01:56.3]} 17... Qxf6 {[%clk 0:01:04]}
18. Qh6 {[%clk 0:01:34.5]} 18... Qg7 {[%clk 0:01:01.5]} 19. Qe3 {[%clk
0:01:32.4]} 19... Nd4 {[%clk 0:00:57.3]} 20. Rf2 {[%clk 0:01:23.6]} 20... h6
{[%clk 0:00:54.5]} 21. Raf1 {[%clk 0:01:21.1]} 21... g5 {[%clk 0:00:47.3]} 22.
Qd2 {[%clk 0:01:15.6]} 22... Rf4 {[%clk 0:00:45.5]} 23. Nxd4 {[%clk 0:01:14.2]}
23... cxd4 {[%clk 0:00:44.9]} 24. Ne2 {[%clk 0:01:13.5]} 24... Rxf2 {[%clk
0:00:43.5]} 25. Rxf2 {[%clk 0:01:10.9]} 25... Rf8 {[%clk 0:00:42.9]} 26. Ng3
{[%clk 0:01:09.1]} 26... Rf4 {[%clk 0:00:41.6]} 27. Nh5 {[%clk 0:01:07.8]} 27...
Rxf2 {[%clk 0:00:40]} 28. Qxf2 {[%clk 0:01:01.9]} 28... Be6 {[%clk 0:00:33.2]}
29. Nxg7 {[%clk 0:01:01.1]} 1-0

[Event "*** Titled Tuesday Blitz"]
[Site "Chess.com"]
[Date "2020.10.20"]
[Round "3"]
[White "As0nchess"]
[Black "boasovietica"]
[Result "1-0"]
[WhiteElo "2601"]
[BlackElo "2376"]
[TimeControl "180+1"]
[EndTime "10:27:37 PDT"]
[Termination "As0nchess won by resignation"]

1. e4 {[%clk 0:03:00.9]} 1... e5 {[%clk 0:02:58.7]} 2. Nf3 {[%clk 0:03:00.8]}
2... Nc6 {[%clk 0:02:58.9]} 3. Bc4 {[%clk 0:03:00.5]} 3... Bc5 {[%clk
0:02:57.5]} 4. O-O {[%clk 0:03:00.3]} 4... Nf6 {[%clk 0:02:56.7]} 5. d3 {[%clk
0:03:00.3]} 5... a6 {[%clk 0:02:55.5]} 6. c3 {[%clk 0:02:59.8]} 6... Ba7 {[%clk
0:02:55.6]} 7. a4 {[%clk 0:02:59]} 7... h6 {[%clk 0:02:54.4]} 8. Re1 {[%clk
0:02:58.2]} 8... O-O {[%clk 0:02:54.3]} 9. Nbd2 {[%clk 0:02:58.1]} 9... Re8
{[%clk 0:02:50.2]} 10. b4 {[%clk 0:02:44.8]} 10... d5 {[%clk 0:02:43.8]} 11.
exd5 {[%clk 0:02:44.1]} 11... Nxd5 {[%clk 0:02:43.7]} 12. Qb3 {[%clk 0:02:44.1]}
12... Be6 {[%clk 0:02:37.3]} 13. Ne4 {[%clk 0:02:24.4]} 13... Qd7 {[%clk
0:01:49.5]} 14. Bxh6 {[%clk 0:02:08.3]} 14... b5 {[%clk 0:01:36.8]} 15. axb5
{[%clk 0:01:50.7]} 15... axb5 {[%clk 0:01:34.4]} 16. Bxb5 {[%clk 0:01:36.5]}
16... gxh6 {[%clk 0:01:10.4]} 17. c4 {[%clk 0:01:32.6]} 17... Kg7 {[%clk
0:00:38]} 18. cxd5 {[%clk 0:01:30.9]} 18... Bxd5 {[%clk 0:00:38.4]} 19. Qc3
{[%clk 0:01:29.5]} 19... Re6 {[%clk 0:00:22.5]} 20. Nxe5 {[%clk 0:01:17.6]}
20... Rxe5 {[%clk 0:00:12.6]} 21. Bxc6 {[%clk 0:01:12.4]} 21... Qf5 {[%clk
0:00:09.5]} 22. Bxd5 {[%clk 0:01:03.6]} 1-0

[Event "*** Titled Tuesday Blitz"]
[Site "Chess.com"]
[Date "2020.10.20"]
[Round "3"]
[White "VladimirBugayev"]
[Black "grandcoach"]
[Result "0-1"]
[WhiteElo "2342"]
[BlackElo "2144"]
[TimeControl "180+1"]
[EndTime "10:27:38 PDT"]
[Termination "grandcoach won by resignation"]

1. e4 {[%clk 0:03:00.9]} 1... c5 {[%clk 0:02:58.9]} 2. Nc3 {[%clk 0:03:00.5]}
2... Nc6 {[%clk 0:02:58.8]} 3. Bb5 {[%clk 0:03:00.8]} 3... Nd4 {[%clk
0:02:58.9]} 4. Nf3 {[%clk 0:03:00.6]} 4... e6 {[%clk 0:02:57.7]} 5. a4 {[%clk
0:02:26.8]} 5... b6 {[%clk 0:02:52.7]} 6. O-O {[%clk 0:02:25.4]} 6... Bb7 {[%clk
0:02:51.5]} 7. d3 {[%clk 0:02:12]} 7... Nf6 {[%clk 0:02:49.2]} 8. Nxd4 {[%clk
0:02:12]} 8... cxd4 {[%clk 0:02:48.6]} 9. Ne2 {[%clk 0:02:12.7]} 9... a6 {[%clk
0:02:39.3]} 10. Bc4 {[%clk 0:02:08.7]} 10... d5 {[%clk 0:02:39.7]} 11. exd5
{[%clk 0:02:00.9]} 11... Bxd5 {[%clk 0:02:35.5]} 12. Bxd5 {[%clk 0:01:02]} 12...
Qxd5 {[%clk 0:02:36.4]} 13. Bf4 {[%clk 0:00:50.5]} 13... Bd6 {[%clk 0:02:23.2]}
14. Bg3 {[%clk 0:00:36.7]} 14... O-O {[%clk 0:02:21.8]} 15. c3 {[%clk
0:00:24.3]} 15... Bxg3 {[%clk 0:02:14.6]} 16. fxg3 {[%clk 0:00:19.8]} 16... dxc3
{[%clk 0:02:13.7]} 17. Nxc3 {[%clk 0:00:16.4]} 17... Qd4+ {[%clk 0:02:12]} 18.
Kh1 {[%clk 0:00:16.5]} 18... Rfd8 {[%clk 0:02:11.7]} 19. Rf3 {[%clk 0:00:16.9]}
19... Rac8 {[%clk 0:02:00.5]} 20. Qf1 {[%clk 0:00:15]} 20... Rc5 {[%clk
0:01:53.9]} 21. Rd1 {[%clk 0:00:13.7]} 21... Rd7 {[%clk 0:01:24.6]} 22. Re1
{[%clk 0:00:12.7]} 22... Re5 {[%clk 0:01:20.3]} 23. Ne4 {[%clk 0:00:09.4]} 23...
Nxe4 {[%clk 0:01:17.5]} 24. dxe4 {[%clk 0:00:08.8]} 24... Qxa4 {[%clk
0:01:16.1]} 25. Rc1 {[%clk 0:00:04.4]} 25... Rc5 {[%clk 0:01:10.8]} 26. Rxc5
{[%clk 0:00:03.3]} 26... bxc5 {[%clk 0:01:11.7]} 27. h3 {[%clk 0:00:03]} 27...
Rd1 {[%clk 0:01:11]} 0-1

[Event "*** Titled Tuesday Blitz"]
[Site "Chess.com"]
[Date "2020.10.20"]
[Round "3"]
[White "TheCavemanChesss"]
[Black "Grineva_Marianna"]
[Result "1-0"]
[WhiteElo "2479"]
[BlackElo "2254"]
[TimeControl "180+1"]
[EndTime "10:27:39 PDT"]
[Termination "TheCavemanChesss won by checkmate"]

1. e4 {[%clk 0:03:00.9]} 1... c5 {[%clk 0:02:59.6]} 2. Nf3 {[%clk 0:03:00.3]}
2... d6 {[%clk 0:02:59.5]} 3. d4 {[%clk 0:03:00.7]} 3... cxd4 {[%clk 0:03:00]}
4. Nxd4 {[%clk 0:03:01.6]} 4... Nf6 {[%clk 0:02:59.3]} 5. Nc3 {[%clk 0:03:02]}
5... a6 {[%clk 0:02:59.6]} 6. Bg5 {[%clk 0:03:01.8]} 6... e6 {[%clk 0:02:58]} 7.
f4 {[%clk 0:03:01.4]} 7... Qc7 {[%clk 0:02:56.6]} 8. Qf3 {[%clk 0:03:00.4]} 8...
b5 {[%clk 0:02:56.6]} 9. O-O-O {[%clk 0:02:50.4]} 9... b4 {[%clk 0:02:56.3]} 10.
Na4 {[%clk 0:02:31]} 10... Bb7 {[%clk 0:02:51.7]} 11. Bd3 {[%clk 0:02:31.1]}
11... Nbd7 {[%clk 0:02:49.4]} 12. Rhe1 {[%clk 0:02:11.6]} 12... h6 {[%clk
0:02:46.2]} 13. Bh4 {[%clk 0:02:09.9]} 13... d5 {[%clk 0:02:35.2]} 14. e5 {[%clk
0:01:43.8]} 14... Ne4 {[%clk 0:02:29.9]} 15. Nxe6 {[%clk 0:01:41.1]} 15... Qc6
{[%clk 0:02:12.4]} 16. Rxe4 {[%clk 0:01:18.8]} 16... dxe4 {[%clk 0:02:03.6]} 17.
Bxe4 {[%clk 0:01:18.6]} 17... Qxe6 {[%clk 0:01:44.2]} 18. Bxb7 {[%clk
0:01:18.5]} 18... Rb8 {[%clk 0:01:37.9]} 19. Bc6 {[%clk 0:01:11]} 19... g5
{[%clk 0:00:57.2]} 20. Bxd7+ {[%clk 0:01:09.1]} 20... Qxd7 {[%clk 0:00:50.2]}
21. Rxd7 {[%clk 0:01:10]} 21... Kxd7 {[%clk 0:00:50.8]} 22. fxg5 {[%clk
0:01:10.3]} 22... hxg5 {[%clk 0:00:42.6]} 23. Qxf7+ {[%clk 0:01:03.8]} 23... Be7
{[%clk 0:00:41.3]} 24. Bxg5 {[%clk 0:01:03.9]} 24... Rbe8 {[%clk 0:00:41.3]} 25.
Nc5+ {[%clk 0:01:01.2]} 25... Kc6 {[%clk 0:00:40.1]} 26. Qe6+ {[%clk 0:00:49.9]}
26... Kxc5 {[%clk 0:00:35.8]} 27. Be3+ {[%clk 0:00:50.4]} 27... Kb5 {[%clk
0:00:33.7]} 28. Qb6+ {[%clk 0:00:50.7]} 28... Kc4 {[%clk 0:00:26.9]} 29. Qc6+
{[%clk 0:00:51]} 29... Bc5 {[%clk 0:00:24.2]} 30. Qxc5# {[%clk 0:00:51.9]} 1-0

[Event "*** Titled Tuesday Blitz"]
[Site "Chess.com"]
[Date "2020.10.20"]
[Round "3"]
[White "Olga_Zhuravleva"]
[Black "TurboSteen"]
[Result "1-0"]
[WhiteElo "2321"]
[BlackElo "2034"]
[TimeControl "180+1"]
[EndTime "10:27:39 PDT"]
[Termination "Olga_Zhuravleva won by resignation"]

1. e4 {[%clk 0:03:00.9]} 1... e6 {[%clk 0:02:59]} 2. d4 {[%clk 0:02:59.7]} 2...
d5 {[%clk 0:02:57.5]} 3. Nd2 {[%clk 0:03:00.3]} 3... Nf6 {[%clk 0:02:55.5]} 4.
e5 {[%clk 0:03:00.7]} 4... Nfd7 {[%clk 0:02:55]} 5. Bd3 {[%clk 0:03:00.8]} 5...
c5 {[%clk 0:02:54.9]} 6. c3 {[%clk 0:03:01.5]} 6... Nc6 {[%clk 0:02:54.8]} 7.
Ne2 {[%clk 0:03:02]} 7... cxd4 {[%clk 0:02:53.6]} 8. cxd4 {[%clk 0:03:00.6]}
8... f6 {[%clk 0:02:53.6]} 9. exf6 {[%clk 0:03:00.6]} 9... Nxf6 {[%clk 0:02:54]}
10. O-O {[%clk 0:03:01]} 10... Bd6 {[%clk 0:02:54.2]} 11. Nf3 {[%clk 0:03:01.4]}
11... Qc7 {[%clk 0:02:54.4]} 12. Ng3 {[%clk 0:03:01.9]} 12... O-O {[%clk
0:02:52.4]} 13. Bg5 {[%clk 0:03:02.4]} 13... Ng4 {[%clk 0:02:45]} 14. Rc1 {[%clk
0:02:57.8]} 14... Bd7 {[%clk 0:02:42.9]} 15. Bb1 {[%clk 0:02:43.1]} 15... Qb6
{[%clk 0:02:39]} 16. Qd3 {[%clk 0:02:40.8]} 16... g6 {[%clk 0:02:36.9]} 17. h3
{[%clk 0:02:35.6]} 17... Nxf2 {[%clk 0:02:30.2]} 18. Kxf2 {[%clk 0:02:17.1]}
18... Nxd4 {[%clk 0:02:29]} 19. Be3 {[%clk 0:02:00.2]} 19... Qxb2+ {[%clk
0:02:26.2]} 20. Ne2 {[%clk 0:01:49.5]} 20... Nxf3 {[%clk 0:02:06.9]} 21. gxf3
{[%clk 0:01:48.3]} 21... Bb5 {[%clk 0:02:00.7]} 22. Qc2 {[%clk 0:01:38.8]} 22...
Qf6 {[%clk 0:01:46.8]} 23. Kg2 {[%clk 0:01:33.4]} 23... Qh4 {[%clk 0:01:41.7]}
24. f4 {[%clk 0:01:09.7]} 24... Rac8 {[%clk 0:01:23.7]} 25. Qb2 {[%clk
0:01:02.7]} 25... Rxc1 {[%clk 0:01:04.4]} 26. Bxc1 {[%clk 0:01:00.8]} 26... g5
{[%clk 0:00:58.3]} 27. Qxb5 {[%clk 0:00:54.7]} 27... gxf4 {[%clk 0:00:57.4]} 28.
Qd7 {[%clk 0:00:45.6]} 28... f3+ {[%clk 0:00:43]} 29. Rxf3 {[%clk 0:00:36]} 1-0